Cogmind - Beta 13 @@@ ROGUE MODE // 2024.05.24 @ 17:06:16 Player: Dosh Result: Destroyed by G-34 Mercenary with Small Laser Performance ------------- Evolutions (0) 0 Regions Visited (1) 200 Robots Destroyed (17) 85 Value Destroyed (464) 464 Prototype IDs (0) 0 Alien Tech Used (0) 0 Bonus (0) 0 TOTAL SCORE: 749 Bonus ------- None Cogmind --------- Core Integrity 0/250 Matter 300/300 Energy 100/100 System Corruption 1% Temperature Cool (6) Movement Core (350) Ox6 Location -10/Materials Parts ------- > --- POWER (1) -------- (None) > --- PROPULSION (2) --- (None) > --- UTILITY (2) ------ Large Storage Unit > --- WEAPON (2) ------- (None) > --- INVENTORY (15) --- Small Laser Assault Rifle Assault Rifle Light Assault Rifle Grenade Launcher Peak State ------------ > --- POWER ------------ Ion Engine > --- PROPULSION ------- Light Treads Light Treads > --- UTILITY ---------- Small Storage Unit Large Storage Unit > --- WEAPON ----------- Light Assault Rifle Light Assault Rifle > --- INVENTORY -------- Small Laser [Rating: 7] Favorites ----------- Power Ion Engine Engine Ion Engine Propulsion Light Treads Treads Light Treads Utility Large Storage Unit Storage Large Storage Unit Weapon Light Assault Rifle Ballistic Gun Light Assault Rifle Build | -11 -10 ------- Run | Yrd Mat Slots Evolved . | . . Power . | . . Propulsion . | . . Utility . | . . Weapon . | . . Parts Attached 9 | 6 3 Power 1 | 1 . Engine 1 | 1 . Core . | . . Reactor . | . . Propulsion 2 | 2 . Treads 2 | 2 . Leg . | . . Wheel . | . . Hover . | . . Flight . | . . Utility 2 | 1 1 Device . | . . Storage 2 | 1 1 Processor . | . . Hackware . | . . Protection . | . . Artifact . | . . Weapon 4 | 2 2 Energy Gun . | . . Energy Cannon . | . . Ballistic Gun 4 | 2 2 Ballistic Cannon . | . . Launcher . | . . Special Weapon . | . . Impact Weapon . | . . Slashing Weapon . | . . Piercing Weapon . | . . Special Melee Weapon . | . . Unidentified Prototypes . | . . Parts Lost 5 | . 5 Power 1 | . 1 Propulsion 2 | . 2 Utility . | . . Weapon 2 | . 2 Highest Loss Streak 3 | . 3 To Critical Strikes . | . . Average Slot Usage (%) 78 | . 78 Engine 11 | . 11 Treads 23 | . 23 Storage 14 | . 14 Ballistic Gun 27 | . 27 Naked Turns . | . . Heaviest Build 32 | 12 32 Greatest Support 40 | 40 40 Greatest Overweight (x) 7 | . 7 Average Overweight (x) . | . . Largest Inventory Capacity 15 | 8 15 Average Capacity 13 | 6 14 Most Carried 5 | 1 5 Average Carried 2 | . 3 Final Capacity 15 | 8 15 Final Carried 5 | 1 5 Class Distribution -------------------- 100% | Mutant Dominant Class ---------------- Mutant | -10/Materials Resources | -11 -10 ----------- Run | Yrd Mat Matter Collected 493 | 230 263 Remotely . | . . Salvage Created 534 | . 534 Parts 38 | . 38 Haulers Intercepted . | . . Recyclers Shooed 1 | . 1 Parts Field Recycled . | . . Retrieved Matter . | . . Parts Self-Destructed . | . . Prevented . | . . Kills | -11 -10 ------- Run | Yrd Mat Combat Hostiles Destroyed 10 | . 10 Guns 10 | . 10 Classes Destroyed 5 | . 5 Worker 1 | . 1 Builder 2 | . 2 Recycler 1 | . 1 Watcher 3 | . 3 Grunt 10 | . 10 Best Kill Streak 4 | . 4 Combat Bots Only 2 | . 2 Max Kills in Single Turn 2 | . 2 Gunslinging . | . . Exploded . | . . Melee . | . . Uniques/NPCs Destroyed . | . . Combat | -11 -10 -------- Run | Yrd Mat Hostile Shots Fired 102 | . 102 Missed 29 | . 29 Damage Taken 968 | . 968 Core 259 | . 259 Absorbed by Shields . | . . Core Remaining (%) 100 | 100 . Volleys Fired 64 | . 64 Largest 2 | . 2 Hottest 40 | . 40 Shots Fired 128 | . 128 Gun 128 | . 128 Cannon . | . . Launcher . | . . Special . | . . Kinetic 128 | . 128 Thermal . | . . Explosive . | . . Electromagnetic . | . . Robot Hit Streak 7 | . 7 Robot Miss Streak 5 | . 5 Penetration Max . | . . Secondary Targets . | . . Shots Hit Robots 78 | . 78 Core Hits 38 | . 38 Critical Kills . | . . Critical Parts Destroyed . | . . Critical Strikes . | . . Melee Attacks . | . . Impact . | . . Slashing . | . . Piercing . | . . Sneak Attacks . | . . Combat Hostiles . | . . Follow-up Attacks . | . . Damage Inflicted 907 | . 907 Guns 792 | . 792 Cannons . | . . Explosions 111 | . 111 Melee . | . . Ramming 4 | . 4 Kinetic 792 | . 792 Thermal 111 | . 111 Explosive . | . . Electromagnetic . | . . Impact . | . . Slashing . | . . Piercing . | . . Highest Corruption 1 | . 1 Average Corruption 1 | . 1 Corruption Purged . | . . Corruption Blocked . | . . Overload Shots . | . . Overflow Damage . | . . Projectiles . | . . Explosions . | . . Melee . | . . Knockbacks . | . . Impact . | . . Kinetic . | . . Secondary . | . . Self-Inflicted Damage 46 | . 46 Shots 1 | . 1 Rammed 3 | . 3 Targets Rammed 4 | . 4 Kicked . | . . Crushed 1 | . 1 Highest Temperature 28 | . 28 Average Temperature 9 | . 9 Received Heat Transfer 516 | . 516 Siege Activations . | . . Robots Corrupted . | . . Combat Hostiles . | . . Parts Fried . | . . Impact Corruptions . | . . Robots Melted . | . . Combat Hostiles . | . . Parts Melted 1 | . 1 Heat Transferred 150 | . 150 Parts Sabotaged . | . . Parts Stolen . | . . Parts Stripped . | . . Power Chain Reactions . | . . Alert | -11 -10 ------- Run | Yrd Mat Peak Influence 334 | . 334 Initial . | . . Average 151 | . 167 Maximum Alert Level 1 | . 1 Low Security (%) 71 | 100 68 Level 1 28 | . 31 Level 2 . | . . Level 3 . | . . Level 4 . | . . Level 5 . | . . High Security . | . . Max Security . | . . Squads Dispatched 3 | . 3 Investigation 2 | . 2 Extermination . | . . Reinforcement 1 | . 1 Assault . | . . Garrison . | . . Intercept . | . . Searches Triggered . | . . Construction Impeded . | . . Haulers Reinforced . | . . Active Scanning Responses . | . . Cargo Convoy Interrupts . | . . Stealth | -11 -10 --------- Run | Yrd Mat Distress Signals . | . . Communications Jammed . | . . Distress Signals . | . . Times Spotted 17 | . 17 Peak Tracking Total 3 | . 3 Tactical Retreats . | . . Traps | -11 -10 ------- Run | Yrd Mat Traps Triggered . | . . Indirectly . | . . Trap Hack Attempts . | . . Triggered . | . . Disarmed . | . . Reprogrammed . | . . Reused . | . . Traps Extracted . | . . Installed . | . . Triggered . | . . Machines | -11 -10 ---------- Run | Yrd Mat Machines Disabled 2 | . 2 Max in Single Turn 2 | . 2 Machines Repaired . | . . Machines Dismantled . | . . Machines Sabotaged . | . . Overloaded Fab Kills . | . . Hacking | -11 -10 --------- Run | Yrd Mat Machines Accessed 5 | . 5 Terminals 3 | . 3 Fabricators . | . . Repair Stations . | . . Recycling Units 2 | . 2 Scanalyzers . | . . Garrison Access . | . . Total Hacks 8 | . 8 Successful 3 | . 3 Failed 5 | . 5 Catastrophic 2 | . 2 Database Lockouts . | . . Manual 8 | . 8 Terminals 6 | . 6 Fabricators . | . . Repair Stations . | . . Recycling Units 2 | . 2 Scanalyzers . | . . Garrison Access . | . . Terminal Hacks 1 | . 1 Robot Analysis 1 | . 1 Fabricator Hacks . | . . Repair Station Hacks . | . . Recycling Unit Hacks . | . . Scanalyzer . | . . Garrison Access Hacks . | . . Unauthorized Hacks 2 | . 2 Terminals . | . . Fabricators . | . . Repair Stations . | . . Recycling Units 2 | . 2 Tunnel 2 | . 2 Scanalyzers . | . . Garrison Access . | . . Data Cores Recovered . | . . Used . | . . Hacking Detections 3 | . 3 Full Trace Events 1 | . 1 Feedback Events 1 | . 1 Corruption 1 | . 1 Feedback Blocked . | . . Robot Schematics Acquired . | . . Robots Built . | . . Authchips . | . . Time . | . . Total Robot Build Rating . | . . Part Schematics Acquired . | . . Parts Built . | . . Authchips . | . . Time . | . . Total Part Build Rating . | . . Parts Repaired . | . . Time . | . . Parts Recycled . | . . Recycled Matter . | . . Retrieved Matter . | . . Retrieved Components . | . . Parts Scanalyzed . | . . Part Schematics Acquired . | . . Parts Damaged . | . . Bothacking | -11 -10 ------------ Run | Yrd Mat Used RIF Installer . | . . Robots Hacked . | . . Non-combat . | . . Combat . | . . Robot Hacks Applied . | . . Relay Couplers Released . | . . Fabnet Peak Effective % . | . . Robots Rewired . | . . Allies Hacked . | . . Hacks Repelled . | . . Allies | -11 -10 -------- Run | Yrd Mat Total Allies . | . . Largest Group . | . . Highest-Rated Group . | . . Highest-Rated Ally . | . . Total Orders . | . . Ally Attacks . | . . Total Damage . | . . Kills . | . . Allies Corrupted . | . . Allies Melted . | . . Intel | -11 -10 ------- Run | Yrd Mat Robot Analysis Total 1 | . 1 Derelict Logs Recovered . | . . Drone Launches . | . . Drone Recoveries . | . . Exploration | -11 -10 ------------- Run | Yrd Mat Turns Passed 835 | 81 754 Spaces Moved 349 | 46 303 Core 21 | 1 20 Treads 328 | 45 283 Legs . | . . Wheels . | . . Hover . | . . Flight . | . . Fastest Speed 50 | 50 160 Average Speed 173 | 157 175 Slowest Speed 400 | 160 400 Overloaded Moves . | . . Propulsion Burnouts . | . . Robots Hopped . | . . Cave-ins Triggered . | . . Exploration Rate (%) 35 | 5 65 Regions Visited 1 Branch Regions . Pre-discovered Areas 2 | . 2 Known Exits Taken . | . . Unknown Exits Taken 1 | 1 . Scrap Searched . | . . Spaces Dug . | . . Terrain Destroyed 13 | . 13 Melee . | . . Projectile . | . . AOE 13 | . 13 Terrain Rammed . | . . Walls Destroyed . | . . Machines Disabled . | . . Actions | -11 -10 --------- Run | Yrd Mat Total 457 | 52 405 Wait 25 | . 25 Move 348 | 45 303 Hop . | . . Pick Up 4 | 1 3 Fast Attach 7 | 6 1 Attach . | . . Detach 1 | . 1 Swap 2 | . 2 Drop 2 | . 2 Fire 64 | . 64 Melee . | . . Ram 2 | . 2 Kick . | . . Crush 2 | . 2 Escape Stasis . | . . Rewire . | . . Trap . | . . Miscellaneous . | . . Route ------- -11/Scrapyard -10/Materials (discovered 2 exits: [*Mat] / [*Min]) History --------- Turn | Location | Event 7 | -11/Scrapyard | Discovered new exit (range 16) 82 | -11/Scrapyard | Entered Materials 255 | -10/Materials | Discovered new exit (range 3) 301 | -10/Materials | Build established: Mutant 481 | -10/Materials | Discovered new exit (range 11) 713 | -10/Materials | Core integrity fell below 50% 733 | -10/Materials | Core integrity fell below 20% 753 | -10/Materials | Lost 3 parts (1p2n) 836 | -10/Materials | Destroyed by G-34 Mercenary with Small Laser Last Messages --------------- 00786_ K-01 Serf collects debris. 00789_ K-01 Serf cleans the Hadron Collector. 00790_ O-16 Technician: "IFF HANDSHAKE FAILED. SECURING TERMINAL." 00793_ U-05 Engineer lays Concrete. 00794_ K-01 Serf collects debris. 00794_ U-05 Engineer lays Concrete. 00795_ ALERT: Hostiles spotted, dispatching reinforcements to Terminal M005. 00795_ U-05 Engineer lays Concrete. 00798_ K-01 Serf collects debris. 00808_ Connecting with Terminal... Feedback: System corruption (+1%). 00808_ K-01 Serf collects debris. 00820_ K-01 Serf destroyed. 00820_ K-01 Serf collects debris. 00828_ Assault Rifle destroyed. 00832_ Slammed into G-34 Mercenary. 00832_ Assault Rifle destroyed. 00832_ K-01 Serf collects debris. 00834_ U-05 Engineer destroyed. Map ----- +----------------------------------------------------+ | ?????????????????????????????????????????????????? | | ?????????????????????????????????????????????????? | | ?????????????????????????????????????????????????? | | ?????????????????????????????????????????????????? | | ?????????????????????????????????????????????????? | | ?????????????????????????????????????????????????? | | ?????????????????????????????????????????????????? | | ?????????????????????????????????????????????????? | | ?????????????????????????????????????????????????? | | ?????????????????????????????????????????????????? | | ?????????????????????????????????????????????????? | | ?????????????????????????????????????????????????? | | ####?????????????????????????????????????????????? | | ?????????????????????????????????????????????? | | """????????????????????????????????????????????? | | """#???????????????????????????????????????????? | | """#??????????########?????????????????????????? | | """#??????????# #?????????????????????????? | | """#??????????# """ #?????????????????????????? | | #??????????# """ !#?????????????????????????? | | #??????????# """ #?????????????????????????? | | == =#??????????# ??????????????????????????? | | #+####??######### ?????????? #????????????????? | | % ##### ##+########## #### ????????? | | k T *%=g ????????? | | < =|!t @g T ?????????? | | !%*%= ????????? | | ***##### ## *=! =% #### ????????? | | ***#???# "!"|" ##!%= k #????????????????? | | ** #???#""!"|""## |""" u !!! #????????????????? | | #???########## """ !!! #??????????????? | | #????????????# """ !! # #??????????????? | | #????????????# """ #?#??????????????? | | #####????????????# #????????????????? | | #???????????????+ #???????????????? | | #???????????????# #???????????????? | | #???????????????# ! +???????????????? | | #???????????????######+#### #???????????????? | | #?????????????????????????? ????????????????? | | #?????????????????????????? ???????????????????? | | ##???????????????????????????????????????????????? | | ?????????????????????????????????????????????????? | | ?????????????????????????????????????????????????? | | ????????????????????????????????????????????????? | | ??????????########??????????????????????????????? | | ???????????# """ #??????????????????????????????? | | ???????????# """ #??????????????????????????????? | | ???????????# """ #######????????????????????????? | | ???????????# ##!! !##???????????????????????? | | ???????????# #! !#???????????????????????? | +----------------------------------------------------+ Best States ------------- Heat Dissipation 25 Energy Generation 10 Energy Capacity 250 Matter Stores 300 Matter Capacity 300 Sight Range 16 Terrain Scan Density 10 Evasion (%) 40 Recoil Reduction 2 Item Schematics ----------------- None Robot Schematics ------------------ None Fabricated ------------ Nothing Alien Tech Used ----------------- None Achievements -------------- None Challenges ------------ None Game ------ Seed CompositeMultinovaCarapace Manual? 0 Play Time 00:06:30 Cumulative 383.9 hours Start 2024.05.24 @ 17:02:39 End 2024.05.24 @ 17:06:16 Sessions 1 Manual Loads 0 Difficulty Rogue Special Mode None Game No. 241 Rogue 241 Adventurer 0 Explorer 0 Win Type - Total 24 Types 16/2/3/1/1/0/0/1/0 Lore% 85 Gallery% 87 Achievement% 81 Wizard Run 0 Options --------- Layout 0 ASCII 0 Keyboard 1 Movement Numpad Keybinds 0 Fullscreen 2 Font 18/SmallcapsGlow Map View 76x50 Zoom Use 0% Tactical HUD 1 Map Filters NONE Filters NONE Steam 1 RUN: 4cdd87b5-c7d3-4b40-9742-4022a78df6aa